[Event "Cellavision Cup 2019"]
[Site "Lund"]
[Date "2019.08.04"]
[Round "8.10"]
[White "Malm Lindberg, Henrik"]
[Black "Smith, Axel"]
[Result "0-1"]
[ECO "C47"]
[WhiteElo "2189"]
[BlackElo "2469"]
[Annotator "ChessBase"]
[PlyCount "96"]
[EventDate "2019.08.02"]
[EventType "swiss"]
[EventCountry "SWE"]
[SourceTitle "playchess.com"]
[Source "ChessBase"]
[SourceQuality "1"]
[TimeControl "5400+30"]

1. e4 {[%emt 0:00:00]} e5 {[%emt 0:00:02]} 2. Nf3 {[%emt 0:00:00]} Nc6 {[%emt 0:00:02]} 3. Nc3 {[%emt 0:00:00]} Nf6 {[%emt 0:02:02]} 4. d4 {[%emt 0:00:00]} exd4 {[%emt 0:00:12]} 5. Nxd4 {[%emt 0:00:00]} Bb4 {[%emt 0:00:17]} 6. Nxc6 {[%emt 0:00:00]} bxc6 {[%emt 0:00:02]} 7. Bd3 {[%emt 0:00:00]} d5 {[%emt 0:02:31]} 8. exd5 {[%emt 0:00:03]} cxd5 {[%emt 0:00:07]} 9. O-O {[%emt 0:00:12]} O-O {[%emt 0:00:06]} 10. h3 {[%emt 0:00:28]} Re8 {[%emt 0:03:59]} 11. Qf3 {[%emt 0:00:19]} Rb8 {[%emt 0:03:48]} 12. Bf4 {[%emt 0:03:35]} Bd6 {[%emt 0:15:21]} 13. Nb5 {[%emt 0:10:11]} Bxf4 {[%emt 0:01:03]} 14. Qxf4 {[%emt 0:02:43]} Rb7 {[%emt 0:01:43]} 15. b4 {[%emt 0:13:52]} a6 {[%emt 0:14:45]} 16. Nc3 {[%emt 0:01:15]} d4 {[%emt 0:00:27]} 17. Ne2 {[%emt 0:17:19]} Rxb4 {[%emt 0:01:12]} 18. Rab1 {[%emt 0:08:45]} Nd5 {[%emt 0:04:46]} 19. Qg3 {[%emt 0:06:58]} c5 {[%emt 0:02:26]} 20. a3 {[%emt 0:01:52]} Rxb1 {[%emt 0:06:34]} 21. Rxb1 {[%emt 0:00:06]} Nb6 {[%emt 0:00:19]} 22. Nf4 {[%emt 0:01:48]} c4 {[%emt 0:02:43]} 23. Bf1 {[%emt 0:01:06]} Bf5 {[%emt 0:00:28]} 24. Rxb6 {[%emt 0:06:56]} Qxb6 {[%emt 0:00:15]} 25. Nd5 {[%emt 0:00:09]} Qc6 {[%emt 0:10:10]} 26. Bxc4 {[%emt 0:00:35]} Be4 {[%emt 0:01:54]} 27. Qb3 {[%emt 0:04:17]} Qd6 {[%emt 0:04:46]} 28. f3 {[%emt 0:05:13]} Rb8 {[%emt 0:05:37]} 29. Nb4 {[%emt 0:02:45]} Bg6 {[%emt 0:01:07]} 30. Bxa6 {[%emt 0:01:04]} Qxa6 {[%emt 0:10:48]} 31. Nxa6 {[%emt 0:00:07]} Rxb3 {[%emt 0:00:02]} 32. cxb3 {[%emt 0:00:09]} d3 {[%emt 0:00:01]} 33. Kf2 {[%emt 0:00:11]} d2 {[%emt 0:00:01]} 34. Ke2 {[%emt 0:00:08]} Bd3+ {[%emt 0:00:04]} 35. Kxd2 {[%emt 0:00:07]} Bxa6 {[%emt 0:00:01]} 36. Ke3 {[%emt 0:08:27]} Kf8 {[%emt 0:00:04]} 37. a4 {[%emt 0:04:09]} Ke7 {[%emt 0:00:20]} 38. b4 {[%emt 0:00:40]} Bf1 {[%emt 0:00:24]} 39. Kf2 {[%emt 0:01:18]} Bc4 {[%emt 0:00:11]} 40. Ke3 {[%emt 0:00:12]} Kd6 {[%emt 0:00:15]} 41. h4 {[%emt 0:00:17]} Ke5 {[%emt 0:03:55]} 42. f4+ {[%emt 0:02:12]} Kd5 {[%emt 0:00:05]} 43. g4 {[%emt 0:00:24]} Bb3 {[%emt 0:02:11]} 44. a5 {[%emt 0:00:15]} Bc4 {[%emt 0:00:14]} 45. g5 {[%emt 0:01:27]} f5 {[%emt 0:01:28]} 46. gxf6 {[%emt 0:00:32]} gxf6 {[%emt 0:00:01]} 47. Kf3 {[%emt 0:00:31]} f5 {[%emt 0:00:31]} 48. Ke3 {[%emt 0:00:15]} h5 {[%emt 0:01:25]} 0-1

[Event "Cellavision Cup 2019"]
[Site "Lund"]
[Date "2019.08.04"]
[Round "8.11"]
[White "Olsson, Simon"]
[Black "Hansen, Torbjorn Ringdal"]
[Result "0-1"]
[ECO "A45"]
[WhiteElo "2176"]
[BlackElo "2432"]
[Annotator "NA"]
[PlyCount "50"]
[EventDate "2019.08.02"]
[EventType "swiss"]
[EventCountry "SWE"]
[SourceTitle "playchess.com"]
[Source "ChessBase"]
[SourceQuality "1"]
[TimeControl "5400+30"]

1. d4 {[%emt 0:00:00]} Nf6 {[%emt 0:00:03]} 2. Bg5 {[%emt 0:00:00]} Ne4 {[%emt 0:00:34]} 3. Bf4 {[%emt 0:00:00]} c5 {[%emt 0:00:24]} 4. f3 {[%emt 0:00:20]} Qa5+ {[%emt 0:00:22]} 5. c3 {[%emt 0:00:07]} Nf6 {[%emt 0:00:07]} 6. d5 {[%emt 0:00:55]} e6 {[%emt 0:00:13]} 7. e4 {[%emt 0:01:46]} exd5 {[%emt 0:00:08]} 8. exd5 {[%emt 0:00:12]} d6 {[%emt 0:00:07]} 9. Qe2+ {[%emt 0:03:25]} Be7 {[%emt 0:05:37]} 10. Bxd6 {[%emt 0:01:51]} Nxd5 $11 {[%emt 0:01:17]} 11. Qe5 {[%emt 0:06:31]} Nc6 {[%emt 0:10:56]} 12. Qxd5 {[%emt 0:03:31]} Qd8 {[%emt 0:04:12]} 13. Qxc5 {[%emt 0:03:20]} Bxd6 {[%emt 0:00:59]} 14. Qe3+ {[%emt 0:00:38]} Be6 {[%emt 0:00:17]} 15. Bd3 {[%emt 0:00:50]} O-O {[%emt 0:06:31]} 16. Ne2 {[%emt 0:00:56]} Re8 {[%emt 0:02:55]} 17. Qd2 {[%emt 0:01:13]} Ne5 {[%emt 0:04:45]} 18. Be4 {[%emt 0:05:33]} f5 {[%emt 0:00:42]} 19. Bd5 {[%emt 0:01:58]} Nc4 {[%emt 0:06:46]} 20. Qd4 {[%emt 0:02:12]} Ne3 {[%emt 0:01:58]} 21. Qxe3 {[%emt 0:01:35]} Bxd5 {[%emt 0:00:07]} 22. Qd3 {[%emt 0:02:07]} Qh4+ {[%emt 0:01:30]} 23. Kd1 {[%emt 0:10:44]} Bc4 {[%emt 0:00:39]} 24. Qxd6 {[%emt 0:00:17]} Rad8 {[%emt 0:00:10]} 25. Qxd8 {[%emt 0:00:37]} Bxe2+ {[%emt 0:00:21]} 0-1

[Event "Cellavision Cup 2019"]
[Site "Lund"]
[Date "2019.08.04"]
[Round "8.12"]
[White "Jogstad, Daniel"]
[Black "Seo, Jung Min"]
[Result "1/2-1/2"]
[ECO "B31"]
[WhiteElo "2154"]
[BlackElo "2399"]
[Annotator "NA"]
[PlyCount "57"]
[EventDate "2019.08.02"]
[EventType "swiss"]
[EventCountry "SWE"]
[SourceTitle "playchess.com"]
[Source "ChessBase"]
[SourceQuality "1"]
[TimeControl "5400+30"]

1. e4 {[%emt 0:00:06]} c5 {[%emt 0:00:00]} 2. Nf3 {[%emt 0:00:11]} Nc6 {[%emt 0:00:00]} 3. Bb5 {[%emt 0:00:09]} g6 {[%emt 0:00:02]} 4. Bxc6 {[%emt 0:00:05]} bxc6 $11 {[%emt 0:00:35]} 5. O-O {[%emt 0:00:25]} Bg7 {[%emt 0:00:07]} 6. e5 {[%emt 0:08:52]} Nh6 {[%emt 0:02:06]} 7. d3 {[%emt 0:02:18]} O-O {[%emt 0:01:03]} 8. Re1 {[%emt 0:05:22]} f6 {[%emt 0:03:39]} 9. exf6 {[%emt 0:00:27]} exf6 {[%emt 0:00:17]} 10. Nc3 {[%emt 0:09:40]} Nf7 {[%emt 0:02:49]} 11. Bf4 {[%emt 0:04:38]} d6 {[%emt 0:03:51]} 12. h3 {[%emt 0:00:12]} Ne5 {[%emt 0:01:24]} 13. d4 {[%emt 0:04:20]} cxd4 {[%emt 0:01:41]} 14. Nxd4 {[%emt 0:01:20]} Qc7 {[%emt 0:01:07]} 15. Ndb5 {[%emt 0:09:47]} cxb5 {[%emt 0:09:03]} 16. Qd5+ {[%emt 0:00:08]} Kh8 {[%emt 0:00:02]} 17. Qxa8 {[%emt 0:00:07]} Bb7 {[%emt 0:00:11]} 18. Qxa7 {[%emt 0:00:20]} Qc6 {[%emt 0:00:18]} 19. f3 {[%emt 0:06:09]} Nxf3+ {[%emt 0:00:04]} 20. gxf3 {[%emt 0:00:04]} Qxf3 {[%emt 0:00:01]} 21. Re2 {[%emt 0:00:22]} Qh1+ {[%emt 0:03:40]} 22. Kf2 {[%emt 0:02:40]} Qf3+ {[%emt 0:00:02]} 23. Kg1 {[%emt 0:01:08]} Qh1+ {[%emt 0:08:16]} 24. Kf2 {[%emt 0:00:05]} Qf3+ {[%emt 0:00:04]} 25. Ke1 {[%emt 0:00:05]} b4 {[%emt 0:01:09]} 26. Rf2 {[%emt 0:03:55]} Re8+ {[%emt 0:27:29]} 27. Ne2 {[%emt 0:00:07]} Rxe2+ {[%emt 0:00:20]} 28. Rxe2 {[%emt 0:00:31]} Qh1+ {[%emt 0:00:03]} 29. Kd2 1/2-1/2

[Event "Cellavision Cup 2019"]
[Site "Lund"]
[Date "2019.08.04"]
[Round "8.13"]
[White "Rostgaard, Tobias Valentin"]
[Black "Namini, Armin"]
[Result "1-0"]
[ECO "B52"]
[WhiteElo "2390"]
[BlackElo "2241"]
[Annotator "NA"]
[PlyCount "77"]
[EventDate "2019.08.02"]
[EventType "swiss"]
[EventCountry "SWE"]
[SourceTitle "playchess.com"]
[Source "ChessBase"]
[SourceQuality "1"]
[TimeControl "5400+30"]

1. e4 {[%emt 0:00:00]} c5 {[%emt 0:00:00]} 2. Nf3 {[%emt 0:00:00]} d6 {[%emt 0:00:00]} 3. Bb5+ {[%emt 0:00:00]} Bd7 {[%emt 0:00:00]} 4. Bxd7+ {[%emt 0:00:21]} Nxd7 {[%emt 0:00:05]} 5. O-O {[%emt 0:00:11]} Ngf6 {[%emt 0:00:03]} 6. Qe2 {[%emt 0:00:12]} e6 {[%emt 0:00:07]} 7. d4 $11 {[%emt 0:00:33]} cxd4 {[%emt 0:00:22]} 8. Nxd4 {[%emt 0:00:07]} a6 {[%emt 0:00:47]} 9. c4 {[%emt 0:00:22]} Rc8 {[%emt 0:01:18]} 10. b3 {[%emt 0:02:20]} Qb6 {[%emt 0:04:11]} 11. Bb2 {[%emt 0:02:42]} Be7 {[%emt 0:00:22]} 12. Kh1 {[%emt 0:01:54]} g5 {[%emt 0:06:51]} 13. Nd2 {[%emt 0:02:36]} Rg8 {[%emt 0:01:09]} 14. Rae1 {[%emt 0:03:30]} Ne5 {[%emt 0:04:57]} 15. N4f3 Nxf3 {[%emt 0:11:27]} 16. Nxf3 {[%emt 0:02:08]} e5 {[%emt 0:02:10]} 17. Rd1 {[%emt 0:01:27]} Qc6 {[%emt 0:03:04]} 18. Rfe1 {[%emt 0:01:11]} g4 {[%emt 0:05:19]} 19. Nh4 {[%emt 0:01:23]} Qxe4 {[%emt 0:02:31]} 20. Qxe4 {[%emt 0:00:37]} Nxe4 {[%emt 0:00:07]} 21. Rxe4 {[%emt 0:00:08]} Bxh4 {[%emt 0:00:15]} 22. Rxd6 {[%emt 0:00:35]} f6 {[%emt 0:04:03]} 23. g3 {[%emt 0:00:05]} Bg5 {[%emt 0:00:07]} 24. h4 {[%emt 0:00:41]} gxh3 {[%emt 0:01:55]} 25. f4 {[%emt 0:00:48]} Bh6 {[%emt 0:05:25]} 26. Rxf6 {[%emt 0:04:28]} Bg7 {[%emt 0:00:04]} 27. Rd6 {[%emt 0:03:16]} Rc6 {[%emt 0:03:41]} 28. Rxc6 {[%emt 0:00:18]} bxc6 {[%emt 0:00:04]} 29. Bxe5 {[%emt 0:00:09]} Kd7 {[%emt 0:03:14]} 30. Bxg7 {[%emt 0:00:14]} Rxg7 {[%emt 0:00:03]} 31. Kh2 {[%emt 0:00:13]} Kd6 {[%emt 0:00:12]} 32. Re5 {[%emt 0:00:12]} c5 {[%emt 0:00:47]} 33. Rh5 {[%emt 0:00:08]} Kc6 {[%emt 0:00:38]} 34. Rh6+ {[%emt 0:00:14]} Kb7 {[%emt 0:00:06]} 35. f5 {[%emt 0:00:17]} a5 {[%emt 0:00:31]} 36. f6 {[%emt 0:00:35]} Rf7 {[%emt 0:00:07]} 37. g4 {[%emt 0:00:05]} Kc6 {[%emt 0:00:18]} 38. g5 {[%emt 0:00:21]} Kd6 {[%emt 0:00:10]} 39. Rxh7 {[%emt 0:00:52] Kd5} 1-0

[Event "Cellavision Cup 2019"]
[Site "Lund"]
[Date "2019.08.04"]
[Round "8.14"]
[White "Ask, Josef"]
[Black "Schneider, Stefan"]
[Result "1/2-1/2"]
[ECO "B10"]
[WhiteElo "2149"]
[BlackElo "2379"]
[Annotator "NA"]
[PlyCount "107"]
[EventDate "2019.08.02"]
[EventType "swiss"]
[EventCountry "SWE"]
[SourceTitle "playchess.com"]
[Source "ChessBase"]
[SourceQuality "1"]
[TimeControl "5400+30"]

1. e4 {[%emt 0:00:00]} c6 {[%emt 0:00:00]} 2. d3 {[%emt 0:00:23]} d5 {[%emt 0:00:00]} 3. Nd2 {[%emt 0:00:17]} e5 {[%emt 0:00:00]} 4. Ngf3 {[%emt 0:00:17]} Bd6 {[%emt 0:00:07]} 5. g3 {[%emt 0:02:08]} Nf6 {[%emt 0:00:08]} 6. Bg2 {[%emt 0:00:12]} O-O {[%emt 0:00:16]} 7. O-O {[%emt 0:00:18]} Re8 {[%emt 0:00:47]} 8. Re1 {[%emt 0:00:29]} Nbd7 {[%emt 0:02:02]} 9. b3 {[%emt 0:02:23]} a5 {[%emt 0:01:11]} 10. a4 {[%emt 0:03:42]} Qc7 {[%emt 0:08:56]} 11. Bb2 {[%emt 0:01:40]} dxe4 {[%emt 0:08:09]} 12. Nxe4 {[%emt 0:02:36]} Nxe4 {[%emt 0:01:54]} 13. Rxe4 {[%emt 0:00:27]} Nf6 {[%emt 0:02:48]} 14. Re1 {[%emt 0:00:58]} Bg4 {[%emt 0:01:58]} 15. h3 {[%emt 0:01:58]} Bh5 {[%emt 0:02:36]} 16. g4 {[%emt 0:01:12]} Bg6 {[%emt 0:00:29]} 17. Nh4 {[%emt 0:00:46]} Bb4 {[%emt 0:10:57]} 18. Rf1 {[%emt 0:05:07]} Rad8 {[%emt 0:09:28]} 19. Nxg6 {[%emt 0:02:17]} hxg6 {[%emt 0:00:11]} 20. Qe2 {[%emt 0:04:20]} Nd5 {[%emt 0:03:42]} 21. Qf3 {[%emt 0:02:04]} Qe7 {[%emt 0:07:18]} 22. Rad1 {[%emt 0:03:40]} Qc5 {[%emt 0:02:37]} 23. c4 {[%emt 0:02:04]} Nc7 {[%emt 0:07:15]} 24. Qe4 {[%emt 0:02:16]} Qe7 {[%emt 0:16:57]} 25. Kh1 {[%emt 0:04:35]} Na6 {[%emt 0:01:10]} 26. Qe2 {[%emt 0:06:38]} Nc5 {[%emt 0:01:43]} 27. Qc2 {[%emt 0:00:06]} Qc7 {[%emt 0:03:19]} 28. d4 {[%emt 0:03:37]} exd4 {[%emt 0:00:03]} 29. Bxd4 {[%emt 0:00:35]} Ne6 {[%emt 0:00:29]} 30. Be3 {[%emt 0:00:22]} Qe5 {[%emt 0:00:56]} 31. Rxd8 {[%emt 0:00:52]} Rxd8 {[%emt 0:00:33]} 32. Rd1 {[%emt 0:01:06]} Rxd1+ {[%emt 0:04:52]} 33. Qxd1 {[%emt 0:00:06]} Bc5 {[%emt 0:00:11]} 34. Bxc5 {[%emt 0:02:17]} Qxc5 {[%emt 0:00:09]} 35. Kg1 {[%emt 0:02:31]} Qd4 {[%emt 0:00:16]} 36. Qe1 {[%emt 0:01:20]} Qd3 {[%emt 0:01:49]} 37. Qxa5 {[%emt 0:01:21]} Qxb3 {[%emt 0:00:03]} 38. Bf1 {[%emt 0:01:11]} Kh7 {[%emt 0:00:28]} 39. Qa7 {[%emt 0:01:39]} Ng5 {[%emt 0:01:52]} 40. a5 {[%emt 0:02:09]} Nxh3+ {[%emt 0:01:30]} 41. Bxh3 {[%emt 0:01:08]} Qxh3 {[%emt 0:00:02]} 42. Qxb7 {[%emt 0:00:47]} Qxg4+ {[%emt 0:00:02]} 43. Kh2 {[%emt 0:00:43]} Qh4+ {[%emt 0:00:02]} 44. Kg1 {[%emt 0:00:36]} Qg4+ {[%emt 0:00:05]} 45. Kh2 {[%emt 0:00:17]} Qh5+ {[%emt 0:00:16]} 46. Kg1 {[%emt 0:00:25]} Qg5+ {[%emt 0:01:06]} 47. Kf1 {[%emt 0:00:44]} Qc1+ {[%emt 0:00:56]} 48. Kg2 {[%emt 0:00:08]} Qxc4 {[%emt 0:00:50]} 49. a6 {[%emt 0:00:15]} Qg4+ {[%emt 0:00:34]} 50. Kf1 Qd1+ {[%emt 0:00:07]} 51. Kg2 {[%emt 0:00:18]} Qg4+ {[%emt 0:00:10]} 52. Kf1 {[%emt 0:00:04]} Qd1+ {[%emt 0:00:34]} 53. Kg2 {[%emt 0:00:06]} Qg4+ {[%emt 0:00:37]} 54. Kf1 {[%emt 0:00:06]} 1/2-1/2

[Event "Cellavision Cup 2019"]
[Site "Lund"]
[Date "2019.08.04"]
[Round "8.15"]
[White "Ollen, Martin"]
[Black "Akesson, Ralf"]
[Result "0-1"]
[ECO "B13"]
[WhiteElo "2096"]
[BlackElo "2348"]
[Annotator "NA"]
[PlyCount "92"]
[EventDate "2019.08.02"]
[EventType "swiss"]
[EventCountry "SWE"]
[SourceTitle "playchess.com"]
[Source "ChessBase"]
[SourceQuality "1"]
[TimeControl "5400+30"]

1. e4 {[%emt 0:01:45]} c6 {[%emt 0:00:00]} 2. d4 {[%emt 0:00:13]} d5 {[%emt 0:00:04]} 3. exd5 {[%emt 0:00:08]} cxd5 {[%emt 0:00:08]} 4. Bd3 {[%emt 0:00:07]} Nc6 {[%emt 0:00:26]} 5. c3 {[%emt 0:00:13]} Nf6 {[%emt 0:00:34]} 6. Bf4 {[%emt 0:05:17]} Bg4 {[%emt 0:00:22]} 7. Qb3 {[%emt 0:03:01]} Qc8 {[%emt 0:00:26]} 8. Nd2 {[%emt 0:00:20]} Bh5 {[%emt 0:01:06]} 9. Ngf3 {[%emt 0:01:11]} Bg6 {[%emt 0:00:31]} 10. Bxg6 {[%emt 0:00:55]} hxg6 {[%emt 0:00:09]} 11. O-O {[%emt 0:01:21]} e6 {[%emt 0:00:25]} 12. Rfe1 $11 {[%emt 0:00:44]} Be7 {[%emt 0:00:57]} 13. Ne5 {[%emt 0:00:40]} O-O {[%emt 0:07:11]} 14. Ndf3 {[%emt 0:03:36]} Ne4 {[%emt 0:02:19]} 15. Rad1 {[%emt 0:01:55]} Rd8 {[%emt 0:04:24]} 16. Re2 {[%emt 0:03:17]} Bd6 {[%emt 0:07:06]} 17. Rde1 {[%emt 0:04:55]} Qc7 {[%emt 0:01:49]} 18. Bg3 {[%emt 0:00:26]} Rab8 {[%emt 0:04:25]} 19. Qc2 {[%emt 0:03:40]} b5 {[%emt 0:05:04]} 20. Nxc6 {[%emt 0:02:18]} Qxc6 {[%emt 0:00:09]} 21. Bxd6 {[%emt 0:00:51]} Qxd6 {[%emt 0:02:38]} 22. a3 {[%emt 0:01:12]} a5 {[%emt 0:03:28]} 23. Ne5 {[%emt 0:02:31]} Rdc8 {[%emt 0:07:42]} 24. Re3 {[%emt 0:02:22]} Rc7 {[%emt 0:08:06]} 25. f3 {[%emt 0:11:58]} Nf6 {[%emt 0:01:07]} 26. Qf2 {[%emt 0:05:03]} b4 {[%emt 0:02:48]} 27. axb4 {[%emt 0:00:20]} axb4 {[%emt 0:00:07]} 28. Ra1 {[%emt 0:15:54]} bxc3 {[%emt 0:00:50]} 29. bxc3 {[%emt 0:02:17]} Ne8 {[%emt 0:04:42]} 30. Qe2 {[%emt 0:06:16]} Qd8 {[%emt 0:03:41]} 31. h3 {[%emt 0:03:15]} Nd6 {[%emt 0:01:30]} 32. Qa6 {[%emt 0:02:28]} Nf5 {[%emt 0:07:56]} 33. Rd3 {[%emt 0:04:35]} Rb2 {[%emt 0:02:13]} 34. f4 {[%emt 0:06:04]} Qh4 {[%emt 0:08:42]} 35. Ng4 {[%emt 0:01:38]} Ng3 {[%emt 0:03:54]} 36. Re3 {[%emt 0:00:47]} Ne4 {[%emt 0:00:47]} 37. Rc1 {[%emt 0:01:07]} Nf2 {[%emt 0:01:12]} 38. Qf1 {[%emt 0:02:46]} Nxg4 {[%emt 0:00:48]} 39. hxg4 {[%emt 0:00:09]} Qxg4 {[%emt 0:00:14]} 40. Ra1 {[%emt 0:00:36]} Rc8 {[%emt 0:00:43]} 41. Qf3 {[%emt 0:01:15]} Qf5 {[%emt 0:00:37]} 42. Rd3 {[%emt 0:00:42]} Rcb8 {[%emt 0:00:27]} 43. Re1 {[%emt 0:00:42]} Rc2 {[%emt 0:00:42]} 44. g4 {[%emt 0:00:28]} Qf6 {[%emt 0:00:07]} 45. g5 {[%emt 0:00:41]} Qf5 {[%emt 0:02:37]} 46. Re5 {[%emt 0:00:05]} Qxd3 {[%emt 0:00:39]} 0-1

[Event "Cellavision Cup 2019"]
[Site "Lund"]
[Date "2019.08.04"]
[Round "8.16"]
[White "Ernst, Thomas"]
[Black "Olofsson-Dolk, Mattis"]
[Result "1/2-1/2"]
[ECO "D85"]
[WhiteElo "2335"]
[BlackElo "2191"]
[Annotator "NA"]
[PlyCount "155"]
[EventDate "2019.08.02"]
[EventType "swiss"]
[EventCountry "SWE"]
[SourceTitle "playchess.com"]
[Source "ChessBase"]
[SourceQuality "1"]
[TimeControl "5400+30"]

1. d4 {[%emt 0:00:00]} Nf6 {[%emt 0:01:20]} 2. c4 {[%emt 0:00:00]} g6 {[%emt 0:00:06]} 3. Nc3 {[%emt 0:00:00]} d5 {[%emt 0:00:07]} 4. cxd5 {[%emt 0:00:00]} Nxd5 {[%emt 0:00:08]} 5. e4 {[%emt 0:00:08]} Nxc3 {[%emt 0:00:10]} 6. bxc3 {[%emt 0:00:05]} Bg7 {[%emt 0:00:13]} 7. Bg5 {[%emt 0:00:55]} c5 {[%emt 0:05:16]} 8. Rc1 {[%emt 0:00:21]} O-O {[%emt 0:02:32]} 9. Nf3 {[%emt 0:01:29]} cxd4 {[%emt 0:03:56]} 10. cxd4 {[%emt 0:00:18]} Bg4 $14 {[%emt 0:00:28]} 11. d5 {[%emt 0:00:53]} h6 {[%emt 0:04:10]} 12. Be3 {[%emt 0:02:43]} Nd7 {[%emt 0:03:40]} 13. h3 {[%emt 0:10:35]} Bxf3 {[%emt 0:01:13]} 14. gxf3 {[%emt 0:00:06]} Rc8 {[%emt 0:01:36]} 15. Rxc8 {[%emt 0:01:01]} Qxc8 {[%emt 0:00:09]} 16. Be2 {[%emt 0:01:10]} Qc3+ {[%emt 0:04:31]} 17. Kf1 {[%emt 0:00:13]} Rc8 {[%emt 0:03:11]} 18. Kg2 {[%emt 0:15:24]} Nb6 {[%emt 0:08:13]} 19. Qb3 {[%emt 0:11:31]} Qxb3 {[%emt 0:04:15]} 20. axb3 {[%emt 0:00:06]} Rc2 {[%emt 0:00:20]} 21. Bd1 {[%emt 0:01:02]} Rb2 {[%emt 0:04:10]} 22. Re1 {[%emt 0:02:27]} Nc8 {[%emt 0:06:45]} 23. Re2 {[%emt 0:00:52]} Rxe2 {[%emt 0:03:02]} 24. Bxe2 {[%emt 0:00:06]} e5 {[%emt 0:00:32]} 25. f4 {[%emt 0:02:05]} f6 {[%emt 0:00:25]} 26. fxe5 {[%emt 0:00:41]} fxe5 {[%emt 0:00:09]} 27. f4 {[%emt 0:00:24]} Nd6 {[%emt 0:04:30]} 28. fxe5 {[%emt 0:01:41]} Bxe5 {[%emt 0:00:02]} 29. Kf3 {[%emt 0:01:07]} g5 {[%emt 0:02:49]} 30. Bxa7 {[%emt 0:01:05]} Kf7 {[%emt 0:01:14]} 31. Ke3 {[%emt 0:01:06]} Kf6 {[%emt 0:00:54]} 32. Bh5 {[%emt 0:01:42]} Bf4+ {[%emt 0:04:49]} 33. Kd3 {[%emt 0:00:37]} Be5 {[%emt 0:00:05]} 34. Bd4 {[%emt 0:04:45]} Nb5 {[%emt 0:00:42]} 35. Bc5 {[%emt 0:00:23]} Nd6 {[%emt 0:00:11]} 36. b4 {[%emt 0:02:33]} Bf4 {[%emt 0:03:35]} 37. Bg4 {[%emt 0:00:53]} Be5 {[%emt 0:00:13]} 38. Be2 {[%emt 0:02:46]} Bf4 {[%emt 0:00:21]} 39. Bd4+ {[%emt 0:00:26]} Be5 {[%emt 0:00:06]} 40. Ke3 {[%emt 0:00:34]} Nf7 {[%emt 0:01:22]} 41. b5 {[%emt 0:00:26]} Nd6 {[%emt 0:03:43]} 42. b6 {[%emt 0:00:17]} Nc8 {[%emt 0:01:27]} 43. Bg4 {[%emt 0:02:10]} Nd6 {[%emt 0:00:08]} 44. Kd3 {[%emt 0:00:43]} Nf7 {[%emt 0:00:46]} 45. Bh5 {[%emt 0:01:57]} Nd6 {[%emt 0:00:08]} 46. Bf3 {[%emt 0:00:43]} Nb5 {[%emt 0:01:31]} 47. Bc5 {[%emt 0:01:17]} Nd6 {[%emt 0:00:09]} 48. Bg4 {[%emt 0:00:28]} Bf4 {[%emt 0:00:55]} 49. Bxd6 {[%emt 0:03:13]} Bxd6 {[%emt 0:00:05]} 50. Kd4 {[%emt 0:00:15]} Bh2 {[%emt 0:01:02]} 51. Kc5 {[%emt 0:00:10]} Ke5 {[%emt 0:00:15]} 52. Bc8 {[%emt 0:00:24]} Kxe4 {[%emt 0:02:11]} 53. Bxb7 {[%emt 0:00:09]} Ke5 {[%emt 0:00:14]} 54. Kc6 {[%emt 0:03:47]} Bg1 {[%emt 0:03:12]} 55. Ba8 {[%emt 0:00:36]} Bxb6 {[%emt 0:04:42]} 56. Kxb6 {[%emt 0:00:07]} Kd6 {[%emt 0:00:08]} 57. Kb5 {[%emt 0:00:39]} h5 {[%emt 0:00:04]} 58. Kc4 {[%emt 0:00:25]} g4 {[%emt 0:00:07]} 59. hxg4 {[%emt 0:00:09]} h4 {[%emt 0:00:05]} 60. g5 {[%emt 0:00:18]} h3 {[%emt 0:00:05]} 61. g6 {[%emt 0:00:20]} h2 {[%emt 0:00:05]} 62. g7 {[%emt 0:00:08]} h1=Q {[%emt 0:00:08]} 63. g8=Q {[%emt 0:00:09]} Qe4+ {[%emt 0:00:21]} 64. Kb5 {[%emt 0:03:15]} Qd3+ {[%emt 0:01:42]} 65. Kb6 {[%emt 0:00:37]} Qe3+ {[%emt 0:05:32]} 66. Ka6 {[%emt 0:00:30]} Qe2+ {[%emt 0:00:26]} 67. Ka7 {[%emt 0:00:38]} Qe3+ {[%emt 0:00:28]} 68. Kb8 {[%emt 0:01:44]} Qb6+ {[%emt 0:00:08]} 69. Bb7 {[%emt 0:00:09]} Qc7+ {[%emt 0:00:10]} 70. Ka7 {[%emt 0:00:38]} Qc5+ {[%emt 0:01:44]} 71. Ka6 {[%emt 0:00:35]} Qa3+ {[%emt 0:00:10]} 72. Kb5 {[%emt 0:01:37]} Qb3+ {[%emt 0:00:08]} 73. Ka5 {[%emt 0:00:17]} Qa3+ {[%emt 0:00:04]} 74. Kb6 {[%emt 0:00:44]} Qb4+ {[%emt 0:00:06]} 75. Ka7 {[%emt 0:00:13]} Qc5+ {[%emt 0:00:04]} 76. Ka8 {[%emt 0:01:01]} Qa5+ {[%emt 0:00:07]} 77. Kb8 {[%emt 0:00:07]} Qc7+ {[%emt 0:00:07]} 78. Ka7 {[%emt 0:00:11]} 1/2-1/2